bitfinex-derivatives/quotes_BTCF0:USTF0_20250429
["timestamp","ask_amount","ask_price","bid_price","bid_amount"]
[1745908570501,0.392977,94710.0,94709.0,0.124]
[1745908571700,0.392977,94710.0,94709.0,0.14030273]
[1745908572003,0.279377,94710.0,94709.0,0.71220193]
[1745908572208,0.211097,94710.0,94709.0,0.71220193]
[1745908572708,0.0527722,94714.0,94709.0,0.50108387]
[1745908572897,0.3608,94726.0,94710.0,0.23938387]
[1745908573203,0.2110638,94725.0,94724.0,0.2110636]
[1745908573797,0.211068,94723.0,94722.0,0.2638363]
[1745908573997,0.211068,94723.0,94722.0,0.28013495]
[1745908574203,0.211068,94723.0,94722.0,0.3310692]
[1745908575507,0.212068,94723.0,94722.0,0.3310692]
[1745908575707,0.212068,94723.0,94722.0,0.34726601]
[1745908576209,0.001,94723.0,94722.0,0.3310692]
[1745908576505,0.002,94723.0,94722.0,0.4366412]
[1745908576808,0.06824,94744.0,94726.0,0.0527648]
[1745908577112,0.0527499,94754.0,94745.0,0.211019]
[1745908577405,0.2120168,94746.0,94745.0,0.211019]
[1745908578407,0.2120168,94746.0,94745.0,0.331019]
[1745908578809,0.2492917,94746.0,94745.0,0.331019]
[1745908579103,0.2512917,94746.0,94745.0,0.331019]
[1745908579894,0.2532917,94746.0,94745.0,0.331019]
[1745908581896,0.2512917,94746.0,94745.0,0.331019]
[1745908582097,0.2532917,94746.0,94745.0,0.331019]
[1745908583004,0.005,94746.0,94745.0,0.331019]
[1745908584411,0.2160168,94746.0,94745.0,0.331019]
[1745908584602,0.005,94746.0,94745.0,0.33888332]
[1745908584798,0.003,94746.0,94745.0,0.33888332]
[1745908584997,0.005,94746.0,94745.0,0.33888332]
[1745908585201,0.2160168,94746.0,94745.0,0.33888332]
[1745908585707,0.005,94746.0,94745.0,0.33888332]
[1745908586509,0.2160168,94746.0,94745.0,0.33888332]
[1745908590410,0.2160168,94746.0,94745.0,0.44618332]
[1745908591418,0.2160168,94746.0,94745.0,0.55418332]
[1745908594517,0.005,94746.0,94745.0,0.55418332]
[1745908595520,0.2160168,94746.0,94745.0,0.55418332]
[1745908600821,0.0527459,94761.0,94760.0,0.2109767]
[1745908601218,0.0527459,94761.0,94760.0,0.3309767]
[1745908601813,0.3164929,94761.0,94760.0,0.3309767]
[1745908602016,0.3214929,94761.0,94760.0,0.3309767]
[1745908602626,0.35906173,94761.0,94760.0,0.3309767]
[1745908602926,0.36406173,94761.0,94760.0,0.3309767]
[1745908604929,0.31131343,94761.0,94760.0,0.3309767]
[1745908606621,0.31131343,94761.0,94760.0,0.5500767]
[1745908607426,0.25856753,94761.0,94760.0,0.5500767]
[1745908609124,0.25856753,94761.0,94760.0,0.12]
[1745908609321,0.25856753,94761.0,94760.0,0.3309856]
[1745908610317,0.25856753,94761.0,94760.0,0.2109856]
[1745908610722,0.04756883,94761.0,94760.0,0.2109856]
[1745908611223,0.04756883,94761.0,94760.0,0.3309856]
[1745908611417,0.04756883,94761.0,94760.0,0.5541856]
[1745908615116,0.25855223,94761.0,94760.0,0.5541856]
[1745908616326,0.01,94761.0,94760.0,0.5541856]
[1745908616528,0.0015,94765.0,94764.0,0.2109767]
[1745908616725,0.2109611,94771.0,94770.0,0.2109611]
[1745908616928,0.2637013,94771.0,94770.0,0.7919611]
[1745908617125,0.3813013,94771.0,94770.0,1.0250611]
[1745908617628,0.41922333,94771.0,94770.0,1.0250611]
[1745908618220,0.42122333,94771.0,94770.0,1.0250611]
[1745908618937,0.36848313,94771.0,94770.0,1.0250611]
[1745908619233,0.36948313,94771.0,94770.0,1.0250611]
[1745908619629,0.15852203,94771.0,94770.0,1.0250611]
[1745908620725,0.25188313,94771.0,94770.0,1.0250611]
[1745908625024,0.36268313,94771.0,94770.0,1.0250611]
[1745908635928,0.47008313,94771.0,94770.0,1.0250611]
[1745908639529,0.47008313,94771.0,94770.0,0.7016]
[1745908639734,0.83088313,94771.0,94770.0,0.12]
[1745908640134,0.2109745,94765.0,94764.0,0.2109758]
[1745908640436,0.2109811,94762.0,94761.0,0.2637266]
[1745908641238,0.4393811,94762.0,94761.0,0.3837266]
[1745908642142,0.4393811,94762.0,94761.0,0.3847266]
[1745908642942,0.4393811,94762.0,94761.0,0.3857266]
[1745908643142,0.4393811,94762.0,94761.0,0.3329812]
[1745908644040,0.4393811,94762.0,94761.0,0.122]
[1745908644243,0.4393811,94762.0,94761.0,0.3329834]
[1745908645044,0.4393811,94762.0,94761.0,0.122]
[1745908646341,0.4393811,94762.0,94761.0,0.001]
[1745908646542,0.4393811,94762.0,94761.0,0.002]
[1745908648533,0.4393811,94762.0,94761.0,0.001]
[1745908648734,0.2109878,94759.0,94758.0,0.1112]
[1745908649844,0.2110079,94750.0,94749.0,0.00158322]
[1745908650446,0.2110079,94750.0,94747.0,0.00158316]
[1745908650447,0.2110123,94748.0,94747.0,0.00158316]
[1745908651639,0.3229123,94748.0,94747.0,0.00158316]
[1745908657938,0.3911123,94748.0,94747.0,0.00158316]
[1745908662152,0.3921123,94748.0,94747.0,0.00158316]
[1745908664141,0.3911123,94748.0,94747.0,0.00158316]
[1745908664337,0.3921123,94748.0,94747.0,0.00158316]
[1745908666647,0.3911123,94748.0,94747.0,0.00158316]
[1745908666849,0.3921123,94748.0,94747.0,0.00158316]
[1745908668838,0.2802123,94748.0,94747.0,0.00158316]
[1745908669040,0.2802123,94748.0,94747.0,0.11888316]
[1745908671851,0.0692,94748.0,94747.0,0.32989766]
[1745908672156,0.001,94748.0,94747.0,0.44989766]
[1745908672857,0.2120123,94748.0,94747.0,0.44989766]
[1745908673248,0.001,94748.0,94747.0,0.44989766]
[1745908673445,0.2120123,94748.0,94747.0,0.44989766]
[1745908673757,0.2110123,94748.0,94747.0,0.45189766]
[1745908674362,0.2110123,94748.0,94747.0,0.45289766]
[1745908674751,0.2110123,94748.0,94747.0,0.45389766]
[1745908675153,0.2110123,94748.0,94747.0,0.45289766]
[1745908675356,0.2110123,94748.0,94747.0,0.45189766]
[1745908676549,0.2110123,94748.0,94747.0,0.45089766]
[1745908676751,0.2110123,94748.0,94747.0,0.45189766]
[1745908683051,0.1096,94754.0,94747.0,0.45189766]
[1745908683052,0.2637588,94753.0,94752.0,0.2110012]
[1745908683655,0.06816,94755.0,94754.0,0.210999]
[1745908684156,0.06816,94755.0,94754.0,0.330999]
[1745908684564,0.2791567,94755.0,94754.0,0.330999]
[1745908684757,0.0527431,94766.0,94754.0,0.330999]
[1745908684758,0.2109815,94764.0,94763.0,0.2109767]
[1745908685162,0.2109815,94764.0,94763.0,0.3309767]
[1745908686559,0.2129815,94764.0,94763.0,0.3319767]
[1745908687461,0.2109815,94764.0,94763.0,0.3329767]
[1745908691266,0.03792203,94771.0,94764.0,0.0527441]
[1745908691457,0.210966,94770.0,94769.0,0.2109633]
[1745908692163,0.210966,94770.0,94769.0,0.3309633]
[1745908692757,0.211966,94770.0,94769.0,0.3309633]
[1745908693559,0.210966,94770.0,94769.0,0.3309633]
[1745908694958,0.03281822,94771.0,94770.0,0.2109633]
[1745908695158,0.2109607,94772.0,94771.0,0.2109611]
[1745908695359,0.3608,94788.0,94775.0,0.2109522]
[1745908695564,0.1205,94785.0,94775.0,0.2109522]
[1745908695765,0.2109464,94778.0,94775.0,0.2109522]
[1745908695958,0.2109485,94777.0,94775.0,0.2109522]
[1745908696165,0.2109485,94777.0,94775.0,0.3309522]
[1745908696364,0.03309037,94776.0,94775.0,0.3309522]
[1745908696569,0.001,94776.0,94775.0,0.3309522]
[1745908696761,0.003,94776.0,94775.0,0.3309522]
[1745908696959,0.21495,94776.0,94775.0,0.3309522]
[1745908699666,0.24659319,94776.0,94775.0,0.3309522]
[1745908700559,0.24659319,94776.0,94775.0,0.4464522]
[1745908701265,0.24659319,94776.0,94775.0,0.5668522]
[1745908703969,0.03564319,94776.0,94775.0,0.9276522]
[1745908704873,0.24659319,94776.0,94775.0,0.9276522]
[1745908709378,0.004,94776.0,94775.0,0.9276522]
[1745908709572,0.21495,94776.0,94775.0,0.9276522]
[1745908711184,0.1122,94784.0,94783.0,0.2109344]
[1745908711475,0.1122,94784.0,94783.0,0.5717344]
[1745908711874,0.1122,94784.0,94783.0,0.6921344]
[1745908712176,0.1122,94784.0,94783.0,1.0429344]
[1745908712367,0.1162,94784.0,94783.0,1.0429344]
[1745908712780,0.3271322,94784.0,94783.0,1.0429344]
[1745908713981,0.3251322,94784.0,94783.0,1.0459344]
[1745908715178,0.3251322,94784.0,94783.0,0.8126344]
[1745908715482,0.3251322,94784.0,94765.0,0.57177]
[1745908715483,0.0527423,94768.0,94765.0,0.57177]
[1745908715686,0.2109722,94766.0,94765.0,0.57177]
[1745908715878,0.2109722,94766.0,94765.0,0.3608]
[1745908716076,0.2109767,94764.0,94755.0,0.1706491]
[1745908716387,0.2109767,94764.0,94761.0,0.0527458]
[1745908716679,0.2109767,94764.0,94763.0,0.37057096]
[1745908717281,0.2109767,94764.0,94763.0,0.2149789]
[1745908717483,0.2109767,94764.0,94763.0,0.2189789]
[1745908717683,0.2109767,94764.0,94763.0,0.2179789]
[1745908718980,0.2109767,94764.0,94763.0,0.2169789]
[1745908719183,0.2109767,94764.0,94763.0,0.3339789]
[1745908719375,0.2109767,94764.0,94763.0,0.3349789]
[1745908719771,0.4441767,94764.0,94763.0,0.3339789]
[1745908720384,0.4441767,94764.0,94763.0,0.3329789]
[1745908723678,0.3274767,94764.0,94763.0,0.3329789]
[1745908724375,0.3274767,94764.0,94763.0,0.5679789]
[1745908726073,0.3274767,94764.0,94763.0,0.5689789]
[1745908726479,0.3274767,94764.0,94763.0,0.5679789]
[1745908726675,0.3274767,94764.0,94763.0,0.5689789]
[1745908729286,0.3274767,94764.0,94763.0,0.3339789]
[1745908731289,0.3274767,94764.0,94763.0,0.123]
[1745908731793,0.2110056,94751.0,94750.0,0.21259089]
[1745908731982,0.2110056,94751.0,94750.0,0.21259109]
[1745908732182,0.2110056,94751.0,94750.0,0.33259109]
[1745908732381,0.23822324,94751.0,94750.0,0.33259109]
[1745908732582,0.46652324,94751.0,94750.0,0.33259109]
[1745908732778,0.46652324,94751.0,94750.0,0.12158319]
[1745908732979,0.57206324,94751.0,94750.0,0.12158319]
[1745908733289,0.2110123,94748.0,94747.0,0.00158316]
[1745908733490,0.2110123,94748.0,94739.0,0.15959206]
[1745908733491,0.2110301,94740.0,94739.0,0.15959206]
[1745908733792,0.6399101,94740.0,94739.0,0.15959206]
[1745908733978,0.7454621,94740.0,94739.0,0.15959206]
[1745908734378,0.9688621,94740.0,94739.0,0.15959206]
[1745908734991,0.2110502,94731.0,94730.0,0.2110517]
[1745908735887,0.4384502,94731.0,94730.0,0.2110517]
[1745908736778,0.4384502,94731.0,94730.0,0.3199517]
[1745908736978,0.4384502,94731.0,94730.0,0.3219517]
[1745908738678,0.4394502,94731.0,94730.0,0.3219517]
[1745908744796,0.3305502,94731.0,94730.0,0.3219517]
[1745908744993,0.2120502,94731.0,94730.0,0.3219517]
[1745908745182,0.2120502,94731.0,94730.0,0.4419517]
[1745908749694,0.001,94731.0,94730.0,0.4419517]
[1745908752489,0.2120502,94731.0,94730.0,0.4419517]
[1745908753990,0.001,94731.0,94730.0,0.4419517]
[1745908755200,0.2120502,94731.0,94730.0,0.4419517]
[1745908756997,0.001,94731.0,94730.0,0.4419517]
[1745908758700,0.2120502,94731.0,94730.0,0.4419517]
[1745908759905,0.2120502,94731.0,94730.0,0.122]
[1745908760199,0.2120502,94731.0,94730.0,0.002]
[1745908766909,0.2110814,94717.0,94715.0,0.00263958]
[1745908767701,0.4402814,94717.0,94715.0,0.00263958]
[1745908767910,0.4402814,94717.0,94716.0,0.4371836]
[1745908768107,0.4402814,94717.0,94716.0,0.4421836]
[1745908768409,0.4402814,94717.0,94716.0,0.3277836]
[1745908768704,0.4402814,94717.0,94716.0,0.3307836]
[1745908777117,0.4402814,94717.0,94716.0,0.4507836]
[1745908777710,0.4402814,94717.0,94716.0,0.3390836]
[1745908777910,0.4402814,94717.0,94716.0,0.4486836]
[1745908780524,0.4402814,94717.0,94716.0,0.128]
[1745908780918,0.4402814,94717.0,94716.0,0.4485836]
[1745908782021,0.4403025,94717.0,94716.0,0.4485836]
[1745908784710,0.4403025,94717.0,94716.0,0.2375]
[1745908784915,0.4403025,94717.0,94716.0,0.128]
[1745908785111,0.4403025,94717.0,94716.0,0.008]
[1745908787218,0.4403025,94717.0,94716.0,0.1185]
[1745908787816,0.4403025,94717.0,94716.0,0.008]
[1745908789220,0.4403025,94717.0,94716.0,0.1185]
[1745908791329,0.4403025,94717.0,94716.0,0.1165]
[1745908792628,0.8011025,94717.0,94716.0,0.1165]
[1745908794422,0.8011025,94717.0,94716.0,0.1155]
[1745908794821,0.8691425,94717.0,94716.0,0.1155]
[1745908796026,0.2111047,94716.0,94715.0,0.00263958]
[1745908796428,0.4415047,94716.0,94715.0,0.00263958]
[1745908797224,0.4415047,94716.0,94715.0,0.00563958]
[1745908797617,0.4415047,94716.0,94715.0,0.00663958]
[1745908799220,0.4415047,94716.0,94715.0,0.12363958]
[1745908799428,0.3235047,94716.0,94715.0,0.23763958]
[1745908800819,0.3235047,94716.0,94715.0,0.23605579]
[1745908802822,0.3235047,94716.0,94715.0,0.44716279]
[1745908804031,0.3235047,94716.0,94715.0,0.12205579]
[1745908804624,0.3235047,94716.0,94715.0,0.23335579]
[1745908805626,0.3235047,94716.0,94715.0,0.44446279]
[1745908811036,0.3915447,94716.0,94715.0,0.44446279]
[1745908811434,0.2638452,94731.0,94730.0,0.2110713]
[1745908811939,0.2110676,94733.0,94732.0,0.2110646]
[1745908812236,0.2110676,94733.0,94732.0,0.3310646]
[1745908813435,0.2120676,94733.0,94732.0,0.3310646]
[1745908815038,0.2140676,94733.0,94732.0,0.3310646]
[1745908816734,0.2120676,94733.0,94732.0,0.3310646]
[1745908817235,0.2110676,94733.0,94732.0,0.3310646]
[1745908817435,0.2120676,94733.0,94732.0,0.3310646]
[1745908817831,0.2110676,94733.0,94732.0,0.3310646]
[1745908818038,0.2120676,94733.0,94732.0,0.3310646]
[1745908818735,0.2130676,94733.0,94732.0,0.3310646]
[1745908826040,0.002,94733.0,94732.0,0.6918646]
[1745908826235,0.4135584,94748.0,94732.0,0.4808]
[1745908826445,0.2110379,94746.0,94745.0,0.2110379]
[1745908826741,0.2110379,94746.0,94745.0,0.5491379]
[1745908827233,0.3312379,94746.0,94745.0,0.6691379]
[1745908827634,0.3342379,94746.0,94745.0,0.6691379]
[1745908829347,0.004,94746.0,94745.0,0.6691379]
[1745908829642,0.003,94746.0,94745.0,0.6691379]
[1745908833737,0.2140379,94746.0,94745.0,0.6691379]
[1745908833933,0.2130379,94746.0,94745.0,0.6691379]
[1745908834143,0.2130379,94746.0,94745.0,0.6701379]
[1745908834545,0.2110379,94746.0,94745.0,0.4591]
[1745908834746,0.2110379,94746.0,94745.0,0.121]
[1745908834933,0.2110379,94746.0,94745.0,0.12]
[1745908835140,0.4384379,94746.0,94745.0,0.001]
[1745908835837,0.2110624,94735.0,94734.0,0.2110637]
[1745908836044,0.2110624,94735.0,94734.0,0.3213637]
[1745908836435,0.4425624,94735.0,94734.0,0.3213637]
[1745908837436,0.4435624,94735.0,94734.0,0.3213637]
[1745908838745,0.4435624,94735.0,94734.0,0.1103]
[1745908839051,0.2110691,94732.0,94731.0,0.2110704]
[1745908840037,0.2110713,94731.0,94730.0,0.1178]
[1745908840237,0.4483713,94731.0,94730.0,0.12]
[1745908841241,0.2110869,94724.0,94723.0,0.3288884]
[1745908842147,0.3260869,94724.0,94723.0,0.4488884]
[1745908843352,0.3260869,94724.0,94723.0,0.4498884]
[1745908846349,0.2110869,94724.0,94723.0,0.4498884]
[1745908846645,0.23305218,94724.0,94723.0,0.4498884]
[1745908848747,0.23305218,94724.0,94723.0,0.121]
[1745908849146,0.23305218,94724.0,94723.0,0.001]
[1745908854142,0.23305218,94724.0,94723.0,0.2120891]
[1745908854347,0.23305218,94724.0,94723.0,0.001]
[1745908855649,0.23305218,94724.0,94723.0,0.2120891]
[1745908855843,0.23305218,94724.0,94723.0,0.001]
[1745908856043,0.23305218,94724.0,94721.0,0.4403921]
[1745908856251,0.2110914,94722.0,94721.0,0.4403921]
[1745908856753,0.4368914,94722.0,94721.0,0.4403921]
[1745908857854,0.4368914,94722.0,94721.0,0.4413921]
[1745908860354,0.4368914,94722.0,94721.0,0.2303]
[1745908860957,0.4368914,94722.0,94721.0,0.1152]
[1745908861659,0.4368914,94722.0,94721.0,0.3262936]
[1745908862159,0.4368914,94722.0,94721.0,0.1152]
[1745908863766,0.4368914,94722.0,94721.0,0.3262936]
[1745908868253,0.02196528,94724.0,94723.0,0.2110891]
[1745908868469,0.2638576,94726.0,94725.0,0.2638443]
[1745908868668,0.64666232,94726.0,94725.0,0.2110744]
[1745908868861,0.2110847,94725.0,94724.0,0.2281]
[1745908869063,0.3252847,94725.0,94724.0,0.2281]
[1745908869269,0.3252847,94725.0,94724.0,0.4391869]
[1745908869965,0.3252847,94725.0,94724.0,0.2281]
[1745908870167,0.3252847,94725.0,94724.0,0.3481]
[1745908870366,0.4386847,94725.0,94724.0,0.3481]
[1745908873767,0.3252847,94725.0,94724.0,0.3481]
[1745908876478,0.3932447,94725.0,94724.0,0.3481]
[1745908881491,0.3932047,94725.0,94724.0,0.3481]
[1745908884295,0.3942047,94725.0,94724.0,0.3481]
[1745908884994,0.3952047,94725.0,94724.0,0.3481]
[1745908885694,0.3962047,94725.0,94724.0,0.3481]
[1745908885885,0.3972047,94725.0,94724.0,0.3481]
[1745908886398,0.3952047,94725.0,94724.0,0.3481]
[1745908886589,0.3972047,94725.0,94724.0,0.3481]
[1745908887488,0.4972047,94725.0,94724.0,0.3481]
[1745908888391,0.4952047,94725.0,94724.0,0.3481]
[1745908888590,0.3972047,94725.0,94724.0,0.3481]
[1745908889189,0.7580047,94725.0,94724.0,0.3481]
[1745908889386,0.7560047,94725.0,94724.0,0.3481]
[1745908889587,0.7590047,94725.0,94724.0,0.3481]
[1745908890985,0.8580047,94725.0,94724.0,0.3481]
[1745908893385,0.2111025,94717.0,94716.0,0.1206]
[1745908893587,0.3608,94717.0,94713.0,0.0946]
[1745908893787,0.3608,94717.0,94700.0,0.25959206]
[1745908893788,0.2111248,94707.0,94706.0,0.09232616]
[1745908894083,0.5719248,94707.0,94706.0,0.0946]
[1745908894283,0.211127,94706.0,94700.0,0.25959206]
[1745908894492,0.305527,94706.0,94701.0,0.0946]
[1745908894790,0.402327,94706.0,94701.0,0.1962]
[1745908895792,0.763127,94706.0,94701.0,0.1962]
[1745908896196,0.2111382,94701.0,94700.0,0.1]
[1745908896999,0.2111382,94701.0,94700.0,0.1928]
[1745908897190,0.3130382,94701.0,94700.0,0.2961]
[1745908897391,0.3130382,94701.0,94700.0,0.3011]
[1745908901891,0.3130382,94701.0,94700.0,0.5122404]
[1745908902892,0.2111382,94701.0,94700.0,0.5122404]
[1745908908203,0.2111382,94701.0,94700.0,0.6322404]
[1745908910304,0.5719382,94701.0,94700.0,0.6322404]
[1745908926920,0.3608,94701.0,94700.0,0.6322404]
[1745908927217,0.6398026,94708.0,94707.0,0.2111248]
[1745908927518,0.211127,94706.0,94705.0,0.2639101]
[1745908927716,0.06788,94708.0,94707.0,0.2111248]
[1745908928013,0.2790026,94708.0,94707.0,0.2111248]
[1745908928819,0.2790026,94708.0,94707.0,0.2121248]
[1745908929314,0.2790026,94708.0,94707.0,0.3321248]
[1745908931911,0.2111226,94708.0,94707.0,0.3321248]
[1745908936620,0.2111226,94708.0,94707.0,0.121]
[1745908937716,0.2111226,94708.0,94707.0,0.1906]
[1745908940011,0.2111226,94708.0,94707.0,0.4017248]
[1745908945818,0.5719226,94708.0,94707.0,0.4017248]
[1745908951820,0.5719226,94708.0,94707.0,0.1906]
[1745908952618,0.6074226,94708.0,94707.0,0.1906]
[1745908955125,0.6427226,94708.0,94707.0,0.1906]
[1745908956621,0.6074226,94708.0,94707.0,0.1906]
[1745908957225,0.6074226,94708.0,94707.0,0.001]
[1745908957423,0.6074226,94708.0,94686.0,0.15959206]
[1745908957424,0.2111694,94687.0,94686.0,0.15959206]
[1745908958031,0.23017026,94687.0,94686.0,0.15959206]
[1745908958229,0.23017026,94687.0,94686.0,0.27959206]
[1745908958622,0.23017026,94687.0,94686.0,0.31389206]
[1745908958823,0.23017026,94687.0,94686.0,0.38629206]
[1745908959024,0.23017026,94687.0,94686.0,0.59746366]
[1745908959231,0.23017026,94687.0,94686.0,0.60346366]
[1745908959435,0.23017026,94687.0,94686.0,0.4438716]
[1745908959631,0.23017026,94687.0,94686.0,0.4478716]
[1745908960032,0.23017026,94687.0,94686.0,0.4428716]
[1745908960330,0.23017026,94687.0,94686.0,0.4468716]
[1745908960734,0.23017026,94687.0,94686.0,0.2357]
[1745908961131,0.23017026,94687.0,94686.0,0.0792]
[1745908961536,0.23017026,94687.0,94686.0,0.0433]
[1745908961838,0.26477026,94687.0,94686.0,0.0433]
[1745908962134,0.2111828,94681.0,94680.0,0.0329]
[1745908962331,0.5719828,94681.0,94680.0,0.0329]
[1745908962935,0.6415828,94681.0,94680.0,0.0329]
[1745908963437,0.6415828,94681.0,94680.0,0.0439]
[1745908963837,0.6415828,94681.0,94680.0,0.011]
[1745908964137,0.0527966,94680.0,94675.0,0.0357]
[1745908964338,0.5719939,94676.0,94675.0,0.0357]
[1745908965240,0.5719939,94676.0,94655.0,0.00105646]
[1745908965241,0.2112318,94659.0,94655.0,0.00105646]
[1745908965436,0.5720318,94659.0,94655.0,0.00105646]
[1745908966231,0.5720318,94659.0,94658.0,0.27959206]
[1745908966440,0.5720318,94659.0,94658.0,0.121]
[1745908966640,0.0528129,94651.0,94646.0,0.0359]
[1745908966937,0.2112564,94648.0,94647.0,0.0355]
[1745908967135,0.5720564,94648.0,94647.0,0.0703]
[1745908967332,0.6074564,94648.0,94647.0,0.0703]
[1745908967730,0.62670196,94648.0,94647.0,0.0703]
[1745908968134,0.62670196,94648.0,94647.0,0.1903]
[1745908969038,0.62670196,94648.0,94647.0,0.1933]
[1745908973441,0.62670196,94648.0,94647.0,0.4045586]
[1745908973641,0.69446196,94648.0,94647.0,0.4045586]
[1745908991166,0.62670196,94648.0,94647.0,0.4045586]
[1745908991356,0.69450196,94648.0,94647.0,0.4045586]
[1745908995968,0.69450196,94648.0,94647.0,0.4025586]
[1745908999667,0.69450196,94648.0,94647.0,0.1913]
[1745908999966,0.72820196,94648.0,94647.0,0.4025586]
[1745909000161,0.72820196,94648.0,94647.0,0.2825586]
[1745909001158,0.69450196,94648.0,94647.0,0.2825586]
[1745909001359,0.69450196,94648.0,94647.0,0.001]
[1745909001672,0.75870196,94648.0,94647.0,0.001]
[1745909001870,0.2112653,94644.0,94643.0,0.0319]
[1745909002167,0.2112653,94644.0,94643.0,0.1519]
[1745909002369,0.2112653,94644.0,94643.0,0.1834]
[1745909002566,0.2745653,94644.0,94643.0,0.1834]
[1745909003159,0.2745653,94644.0,94643.0,0.1864]
[1745909003758,0.2745653,94644.0,94643.0,0.1545]
[1745909004166,0.2745653,94644.0,94643.0,0.0345]
[1745909004369,0.2745653,94644.0,94643.0,0.003]
[1745909005365,0.2745653,94644.0,94643.0,0.0357]
[1745909007372,0.2745653,94644.0,94643.0,0.0688]
[1745909009880,0.2745653,94644.0,94643.0,0.003]
[1745909010972,0.2745653,94644.0,94643.0,0.0341]
[1745909011373,0.2745653,94644.0,94643.0,0.066]
[1745909011980,0.2745653,94644.0,94643.0,0.065]
[1745909012182,0.2745653,94644.0,94643.0,0.064]
[1745909014778,0.3422853,94644.0,94643.0,0.064]
[1745909020988,0.3116853,94644.0,94643.0,0.064]
[1745909022383,0.3117253,94644.0,94643.0,0.2752676]
[1745909022578,0.2439653,94644.0,94643.0,0.2752676]
[1745909022794,0.3117253,94644.0,94643.0,0.2752676]
[1745909023183,0.3117253,94644.0,94643.0,0.3952676]
[1745909023782,0.2790253,94644.0,94643.0,0.3952676]
[1745909023988,0.2112653,94644.0,94643.0,0.3952676]
[1745909024193,0.2790253,94644.0,94643.0,0.3952676]
[1745909026382,0.3094253,94644.0,94643.0,0.3952676]
[1745909030391,0.3094253,94644.0,94643.0,0.184]
[1745909031295,0.3094253,94644.0,94643.0,0.064]
[1745909031484,0.3094253,94644.0,94643.0,0.2752676]
[1745909032093,0.2112653,94644.0,94643.0,0.2752676]
[1745909032295,0.2790253,94644.0,94643.0,0.2752676]
[1745909033195,0.2790253,94644.0,94643.0,0.3952676]
[1745909037499,0.3112253,94644.0,94643.0,0.3952676]
[1745909038005,0.3111453,94644.0,94643.0,0.3952676]
[1745909040897,0.3111453,94644.0,94643.0,0.184]
[1745909042794,0.3111453,94644.0,94643.0,0.3952676]
[1745909046305,0.3111453,94644.0,94643.0,0.184]
[1745909046701,0.3742453,94644.0,94643.0,0.3952676]
[1745909047102,0.3742453,94644.0,94643.0,0.2752676]
[1745909047308,0.3742453,94644.0,94643.0,0.064]
[1745909047806,0.3742453,94644.0,94643.0,0.2752676]
[1745909049109,0.3422453,94644.0,94643.0,0.2752676]
[1745909049613,0.3111453,94644.0,94643.0,0.2752676]
[1745909058019,0.3111453,94644.0,94643.0,0.064]
[1745909058221,0.3429453,94644.0,94643.0,0.064]
[1745909059112,0.3111453,94644.0,94643.0,0.2752676]
[1745909060313,0.3111453,94644.0,94643.0,0.064]
[1745909060908,0.3111453,94644.0,94643.0,0.2752676]
[1745909061108,0.3421453,94644.0,94643.0,0.2752676]
[1745909062613,0.3111453,94644.0,94643.0,0.2752676]
[1745909067924,0.3111453,94644.0,94643.0,0.064]
[1745909068725,0.3111453,94644.0,94643.0,0.2752676]
[1745909068925,0.3111453,94644.0,94643.0,0.064]
[1745909072822,0.2434653,94644.0,94643.0,0.064]
[1745909073126,0.3111053,94644.0,94643.0,0.064]
[1745909077126,0.2112653,94644.0,94643.0,0.064]
[1745909077430,0.3608,94645.0,94644.0,0.2112653]
[1745909077633,0.5720631,94645.0,94644.0,0.3073653]
[1745909078131,0.5720631,94645.0,94644.0,0.4273653]
[1745909079129,0.5720631,94645.0,94644.0,0.2161]
[1745909079326,0.6038631,94645.0,94644.0,0.2161]
[1745909080126,0.6038631,94645.0,94644.0,0.0961]
[1745909082033,0.5720631,94645.0,94644.0,0.0961]
[1745909082543,0.5720631,94645.0,94644.0,0.3073653]
[1745909083726,0.6397031,94645.0,94644.0,0.3073653]
[1745909091931,0.5720631,94645.0,94644.0,0.3073653]
[1745909092130,0.6397031,94645.0,94644.0,0.3073653]
[1745909101141,0.3608,94645.0,94644.0,0.4273653]
[1745909101339,0.5720631,94645.0,94644.0,0.4273653]
[1745909104634,0.5720631,94645.0,94644.0,0.12]
[1745909104937,0.6340631,94645.0,94644.0,0.3312653]
[1745909105830,0.6340631,94645.0,94644.0,0.3614653]
[1745909106042,0.5720631,94645.0,94644.0,0.3614653]
[1745909109332,0.3608,94645.0,94644.0,0.3614653]
[1745909111438,0.5720631,94645.0,94644.0,0.3614653]
[1745909122348,0.5740631,94645.0,94644.0,0.3614653]
[1745909123651,0.5760631,94645.0,94644.0,0.3614653]
[1745909137258,0.5760631,94645.0,94644.0,0.37714828]
[1745909137459,0.5760631,94645.0,94644.0,0.3614653]
[1745909137851,0.5760631,94645.0,94644.0,0.37705702]
[1745909138456,0.5760631,94645.0,94644.0,0.3614653]
[1745909144959,0.5760631,94645.0,94644.0,0.3312653]
[1745909145664,0.5760631,94645.0,94644.0,0.3923653]
[1745909154768,0.3608,94672.0,94644.0,0.5419]
[1745909155064,0.06557501,94720.0,94644.0,0.5419]
[1745909155065,0.2787495,94679.0,94678.0,0.0527968]
[1745909155862,0.2787495,94679.0,94678.0,0.2639773]
[1745909156062,0.3423495,94679.0,94678.0,0.2639773]
[1745909157067,0.3463495,94679.0,94678.0,0.2639773]
[1745909158265,0.3503495,94679.0,94678.0,0.2639773]
[1745909160963,0.3503495,94679.0,94678.0,0.2111805]
[1745909165877,0.2111961,94675.0,94674.0,0.0659]
[1745909166079,0.2111961,94675.0,94674.0,0.2770984]
[1745909166976,0.2759961,94675.0,94674.0,0.2770984]
[1745909167281,0.2789961,94675.0,94674.0,0.2770984]
[1745909167674,0.2819961,94675.0,94674.0,0.2770984]
[1745909168172,0.2789961,94675.0,94674.0,0.2770984]
[1745909168372,0.2819961,94675.0,94674.0,0.2770984]
[1745909169783,0.2789961,94675.0,94674.0,0.2770984]
[1745909169979,0.2819961,94675.0,94674.0,0.2770984]
[1745909177087,0.2490961,94675.0,94674.0,0.2770984]
[1745909186188,0.006,94675.0,94674.0,0.2770984]
[1745909187196,0.006,94675.0,94674.0,0.3970984]
[1745909187702,0.2171961,94675.0,94674.0,0.3970984]
[1745909190304,0.2171961,94675.0,94674.0,0.2770984]
[1745909191203,0.2171961,94675.0,94674.0,0.3970984]
[1745909192100,0.2171961,94675.0,94674.0,0.2770984]
[1745909193996,0.006,94675.0,94674.0,0.2770984]
[1745909195102,0.006,94675.0,94674.0,0.3970984]
[1745909201408,0.2489961,94675.0,94674.0,0.3970984]
[1745909202210,0.2811961,94675.0,94674.0,0.2770984]
[1745909203614,0.2489961,94675.0,94674.0,0.2770984]
[1745909206803,0.0378,94675.0,94674.0,0.2770984]